[Event "Titled Tuesday Blitz May 9 Early 2023"]
[White "Mouhamad, Joachim"]
[Black "KSho99"]
[WhiteFideId "656410"]
[WhiteElo "2125"]
[BlackElo "2158"]
[Result "1-0"]
[Round "02"]
[TimeControl "180+2"]
[Date "2023.05.09"]
[WhiteClock "0:00:08"]
[BlackClock "0:00:00"]

1. e4 {[%clk 0:02:53]}  e6 {[%clk 0:02:59]} 2. d4 {[%clk 0:02:53]}  d5 {[%clk 0:02:59]} 3. Nc3 {[%clk 0:02:53]}  Be7 {[%clk 0:02:56]} 4. Be3 {[%clk 0:02:45]}  dxe4 {[%clk 0:02:27]} 5. Nxe4 {[%clk 0:02:46]}  Nd7 {[%clk 0:02:20]} 6. Nf3 {[%clk 0:02:44]}  Ngf6 {[%clk 0:02:20]} 7. Nxf6+ {[%clk 0:02:42]}  Nxf6 {[%clk 0:02:19]} 8. Bd3 {[%clk 0:02:33]}  O-O {[%clk 0:02:06]} 9. Qe2 {[%clk 0:02:26]}  b6 {[%clk 0:01:51]} 10. O-O-O {[%clk 0:02:23]}  Bb7 {[%clk 0:01:51]} 11. Ne5 {[%clk 0:02:19]}  Qd5 {[%clk 0:01:39]} 12. Kb1 {[%clk 0:02:16]}  c5 {[%clk 0:01:16]} 13. Rhg1 {[%clk 0:02:06]}  cxd4 {[%clk 0:01:05]} 14. Bxd4 {[%clk 0:02:06]}  Rfd8 {[%clk 0:00:55]} 15. Bc3 {[%clk 0:01:32]}  Qc5 {[%clk 0:00:55]} 16. f4 {[%clk 0:01:15]}  Rac8 {[%clk 0:00:50]} 17. a3 {[%clk 0:01:09]}  b5 {[%clk 0:00:41]} 18. Bb4 {[%clk 0:01:07]}  Qc7 {[%clk 0:00:41]} 19. g4 {[%clk 0:00:59]}  Bxb4 {[%clk 0:00:40]} 20. axb4 {[%clk 0:01:00]}  Nd5 {[%clk 0:00:23]} 21. Qd2 {[%clk 0:00:50]}  a5 {[%clk 0:00:14]} 22. bxa5 {[%clk 0:00:48]}  b4 {[%clk 0:00:14]} 23. Nc4 {[%clk 0:00:39]}  Ba6 {[%clk 0:00:10]} 24. Nb6 {[%clk 0:00:22]}  Nxb6 {[%clk 0:00:07]} 25. axb6 {[%clk 0:00:20]}  Qxb6 {[%clk 0:00:06]} 26. Rg3 {[%clk 0:00:07]}  Bxd3 {[%clk 0:00:05]} 27. Rxd3 {[%clk 0:00:07]}  Rxd3 {[%clk 0:00:05]} 28. Qxd3 {[%clk 0:00:07]}  h6 {[%clk 0:00:03]} 29. g5 {[%clk 0:00:07]}  hxg5 {[%clk 0:00:03]} 30. fxg5 {[%clk 0:00:08]}  Qf2 {[%clk 0:00:02]} 31. g6 {[%clk 0:00:07]}  Qxh2 {[%clk 0:00:01]} 32. gxf7+ {[%clk 0:00:07]}  Kxf7 {[%clk 0:00:02]} 33. Qd7+ {[%clk 0:00:08]}  Kg8 {[%clk 0:00:00]} 34. Qxc8+ {[%clk 0:00:08]} 1-0


[Site "https://www.chess.com"]

[Event "Titled Tuesday Blitz May 9 Early 2023"]
[White "Sargissyan, Sargis"]
[Black "Necula, Iulian"]
[WhiteFideId "13303210"]
[BlackFideId "1232380"]
[WhiteElo "2109"]
[BlackElo "1790"]
[Result "1-0"]
[Round "02"]
[TimeControl "180+2"]
[Date "2023.05.09"]
[WhiteClock "0:00:46"]
[BlackClock "0:00:11"]

1. e4 {[%clk 0:02:59]}  d6 {[%clk 0:02:59]} 2. d4 {[%clk 0:02:58]}  Nf6 {[%clk 0:03:00]} 3. Nc3 {[%clk 0:02:58]}  e5 {[%clk 0:03:00]} 4. Nf3 {[%clk 0:02:58]}  Nbd7 {[%clk 0:02:59]} 5. Bc4 {[%clk 0:02:52]}  Be7 {[%clk 0:02:59]} 6. O-O {[%clk 0:02:51]}  c6 {[%clk 0:02:59]} 7. a4 {[%clk 0:02:38]}  a5 {[%clk 0:02:58]} 8. Qe2 {[%clk 0:02:35]}  Qc7 {[%clk 0:02:58]} 9. dxe5 {[%clk 0:02:30]}  dxe5 {[%clk 0:02:58]} 10. Nh4 {[%clk 0:02:17]}  Nb6 {[%clk 0:02:23]} 11. Bb3 {[%clk 0:02:07]}  O-O {[%clk 0:02:16]} 12. f4 {[%clk 0:01:29]}  Nxe4 {[%clk 0:01:39]} 13. Nxe4 {[%clk 0:01:24]}  Bxh4 {[%clk 0:01:38]} 14. Qh5 {[%clk 0:01:21]}  Be7 {[%clk 0:01:12]} 15. fxe5 {[%clk 0:01:07]}  Be6 {[%clk 0:01:11]} 16. Nf6+ {[%clk 0:00:59]}  Bxf6 {[%clk 0:01:09]} 17. exf6 {[%clk 0:00:57]}  Bxb3 {[%clk 0:00:11]} 18. Qg5 {[%clk 0:00:46]} 1-0


[Site "https://www.chess.com"]

[Event "Titled Tuesday Blitz May 9 Early 2023"]
[White "Stead, Kerry"]
[Black "electrosaw"]
[WhiteFideId "3202577"]
[WhiteElo "1997"]
[BlackElo "2419"]
[Result "0-1"]
[Round "02"]
[TimeControl "180+2"]
[Date "2023.05.09"]
[WhiteClock "0:00:00"]
[BlackClock "0:01:06"]

1. d4 {[%clk 0:02:16]}  Nf6 {[%clk 0:02:59]} 2. f3 {[%clk 0:02:16]}  c5 {[%clk 0:02:57]} 3. d5 {[%clk 0:02:16]}  g6 {[%clk 0:02:56]} 4. e4 {[%clk 0:02:14]}  d6 {[%clk 0:02:56]} 5. Ne2 {[%clk 0:02:13]}  Bg7 {[%clk 0:02:55]} 6. Nec3 {[%clk 0:02:11]}  O-O {[%clk 0:02:55]} 7. Be3 {[%clk 0:02:11]}  e6 {[%clk 0:02:50]} 8. a4 {[%clk 0:02:08]}  exd5 {[%clk 0:02:47]} 9. exd5 {[%clk 0:02:04]}  Re8 {[%clk 0:02:45]} 10. Qd2 {[%clk 0:02:00]}  Bh6 {[%clk 0:02:38]} 11. Nd1 {[%clk 0:01:54]}  Nxd5 {[%clk 0:02:24]} 12. Qxd5 {[%clk 0:01:52]}  Bxe3 {[%clk 0:02:23]} 13. Nxe3 {[%clk 0:01:51]}  Rxe3+ {[%clk 0:02:24]} 14. Kf2 {[%clk 0:01:51]}  Re5 {[%clk 0:02:14]} 15. Qd2 {[%clk 0:01:44]}  Nc6 {[%clk 0:02:08]} 16. Nc3 {[%clk 0:01:43]}  Qh4+ {[%clk 0:01:52]} 17. g3 {[%clk 0:01:38]}  Qd4+ {[%clk 0:01:52]} 18. Qxd4 {[%clk 0:01:38]}  Nxd4 {[%clk 0:01:52]} 19. Bd3 {[%clk 0:01:29]}  Bf5 {[%clk 0:01:49]} 20. f4 {[%clk 0:01:16]}  Re6 {[%clk 0:01:39]} 21. Bxf5 {[%clk 0:01:01]}  gxf5 {[%clk 0:01:40]} 22. Rac1 {[%clk 0:00:59]}  Rae8 {[%clk 0:01:38]} 23. Rhe1 {[%clk 0:00:39]}  Kg7 {[%clk 0:01:33]} 24. h4 {[%clk 0:00:22]}  a6 {[%clk 0:01:26]} 25. Rxe6 {[%clk 0:00:14]}  fxe6 {[%clk 0:01:25]} 26. Ne2 {[%clk 0:00:09]}  Nxe2 {[%clk 0:01:24]} 27. Kxe2 {[%clk 0:00:10]}  Kf6 {[%clk 0:01:24]} 28. Rd1 {[%clk 0:00:08]}  d5 {[%clk 0:01:23]} 29. Kd3 {[%clk 0:00:07]}  Rg8 {[%clk 0:01:22]} 30. Rg1 {[%clk 0:00:06]}  b5 {[%clk 0:01:23]} 31. axb5 {[%clk 0:00:05]}  axb5 {[%clk 0:01:24]} 32. c3 {[%clk 0:00:05]}  h5 {[%clk 0:01:22]} 33. Ke3 {[%clk 0:00:04]}  Ra8 {[%clk 0:01:22]} 34. Rg2 {[%clk 0:00:04]}  Ra1 {[%clk 0:01:21]} 35. Kd2 {[%clk 0:00:01]}  Rb1 {[%clk 0:01:19]} 36. Kc2 {[%clk 0:00:01]}  Re1 {[%clk 0:01:19]} 37. Kd2 {[%clk 0:00:01]}  Ra1 {[%clk 0:01:15]} 38. Kc2 {[%clk 0:00:00]}  e5 {[%clk 0:01:06]} 0-1


[Site "https://www.chess.com"]

[Event "Titled Tuesday Blitz May 9 Early 2023"]
[White "Balla, Tamas-Kristof"]
[Black "Hartikainen, Jarmo"]
[WhiteFideId "1208497"]
[BlackFideId "503134"]
[WhiteElo "2334"]
[BlackElo "2110"]
[Result "1-0"]
[Round "02"]
[TimeControl "180+2"]
[Date "2023.05.09"]
[WhiteClock "0:00:21"]
[BlackClock "0:00:00"]

1. e4 {[%clk 0:03:00]}  c5 {[%clk 0:02:59]} 2. Nf3 {[%clk 0:03:00]}  Nc6 {[%clk 0:03:00]} 3. Bb5 {[%clk 0:02:59]}  g6 {[%clk 0:02:59]} 4. O-O {[%clk 0:02:53]}  Bg7 {[%clk 0:02:59]} 5. Re1 {[%clk 0:02:53]}  Nf6 {[%clk 0:02:59]} 6. c3 {[%clk 0:02:52]}  O-O {[%clk 0:02:56]} 7. d4 {[%clk 0:02:52]}  cxd4 {[%clk 0:02:39]} 8. cxd4 {[%clk 0:02:53]}  d5 {[%clk 0:02:40]} 9. e5 {[%clk 0:02:53]}  Ne4 {[%clk 0:02:40]} 10. Nbd2 {[%clk 0:02:40]}  Nxd2 {[%clk 0:02:30]} 11. Bxd2 {[%clk 0:02:38]}  Bg4 {[%clk 0:02:29]} 12. Bxc6 {[%clk 0:02:34]}  bxc6 {[%clk 0:02:28]} 13. h3 {[%clk 0:02:30]}  Bf5 {[%clk 0:02:24]} 14. Rc1 {[%clk 0:02:24]}  Qb6 {[%clk 0:02:18]} 15. a3 {[%clk 0:02:02]}  Rfc8 {[%clk 0:02:15]} 16. Bb4 {[%clk 0:02:02]}  Bf8 {[%clk 0:02:08]} 17. e6 {[%clk 0:01:14]}  Bxe6 {[%clk 0:01:55]} 18. Ng5 {[%clk 0:01:13]}  Bf5 {[%clk 0:01:52]} 19. Bxe7 {[%clk 0:01:12]}  Bg7 {[%clk 0:01:27]} 20. Bc5 {[%clk 0:01:07]}  Qxb2 {[%clk 0:01:26]} 21. Re7 {[%clk 0:01:07]}  Bf6 {[%clk 0:01:15]} 22. Re2 {[%clk 0:01:00]}  Qb5 {[%clk 0:00:58]} 23. Be7 {[%clk 0:00:55]}  Bg7 {[%clk 0:00:42]} 24. Bc5 {[%clk 0:00:41]}  Re8 {[%clk 0:00:37]} 25. Rxe8+ {[%clk 0:00:38]}  Rxe8 {[%clk 0:00:37]} 26. Qd2 {[%clk 0:00:38]}  Re2 {[%clk 0:00:35]} 27. Qf4 {[%clk 0:00:31]}  h6 {[%clk 0:00:26]} 28. Nf3 {[%clk 0:00:30]}  Qb2 {[%clk 0:00:21]} 29. Rf1 {[%clk 0:00:28]}  Kh7 {[%clk 0:00:09]} 30. Ne5 {[%clk 0:00:26]}  Bxe5 {[%clk 0:00:04]} 31. dxe5 {[%clk 0:00:27]}  Be6 {[%clk 0:00:00]} 32. Qa4 {[%clk 0:00:21]} 1-0


[Site "https://www.chess.com"]

[Event "Titled Tuesday Blitz May 9 Early 2023"]
[White "Levitan, Ronit"]
[Black "Khromkin"]
[WhiteFideId "2815109"]
[WhiteElo "1930"]
[BlackElo "2413"]
[Result "0-1"]
[Round "02"]
[TimeControl "180+2"]
[Date "2023.05.09"]
[WhiteClock "0:00:10"]
[BlackClock "0:01:35"]

1. e4 {[%clk 0:03:00]}  c5 {[%clk 0:02:59]} 2. c3 {[%clk 0:03:00]}  Nc6 {[%clk 0:02:59]} 3. d4 {[%clk 0:02:56]}  d5 {[%clk 0:03:00]} 4. exd5 {[%clk 0:02:56]}  Qxd5 {[%clk 0:03:01]} 5. Nf3 {[%clk 0:02:56]}  Bg4 {[%clk 0:03:02]} 6. Be2 {[%clk 0:02:57]}  cxd4 {[%clk 0:03:02]} 7. cxd4 {[%clk 0:02:57]}  e6 {[%clk 0:03:03]} 8. h3 {[%clk 0:02:57]}  Bh5 {[%clk 0:03:02]} 9. Nc3 {[%clk 0:02:57]}  Qa5 {[%clk 0:03:02]} 10. O-O {[%clk 0:02:57]}  Rd8 {[%clk 0:03:03]} 11. Qb3 {[%clk 0:02:53]}  Qb4 {[%clk 0:03:02]} 12. Qxb4 {[%clk 0:02:36]}  Bxb4 {[%clk 0:03:03]} 13. g4 {[%clk 0:02:32]}  Bg6 {[%clk 0:03:01]} 14. Be3 {[%clk 0:02:33]}  h5 {[%clk 0:03:00]} 15. Kg2 {[%clk 0:02:30]}  Nf6 {[%clk 0:02:51]} 16. g5 {[%clk 0:02:18]}  Ne4 {[%clk 0:02:50]} 17. Rac1 {[%clk 0:02:15]}  h4 {[%clk 0:02:19]} 18. a3 {[%clk 0:00:32]}  Nxc3 {[%clk 0:02:16]} 19. bxc3 {[%clk 0:00:33]}  Bxa3 {[%clk 0:02:16]} 20. Ra1 {[%clk 0:00:33]}  Bb2 {[%clk 0:02:15]} 21. Ra2 {[%clk 0:00:33]}  Bxc3 {[%clk 0:02:15]} 22. Rd1 {[%clk 0:00:29]}  Be4 {[%clk 0:02:13]} 23. Bb5 {[%clk 0:00:23]}  a6 {[%clk 0:02:09]} 24. Ba4 {[%clk 0:00:18]}  Ke7 {[%clk 0:02:00]} 25. Bxc6 {[%clk 0:00:16]}  Bxc6 {[%clk 0:01:59]} 26. Rc2 {[%clk 0:00:15]}  Bb4 {[%clk 0:01:53]} 27. Rxc6 {[%clk 0:00:15]}  bxc6 {[%clk 0:01:53]} 28. Ne5 {[%clk 0:00:16]}  Rc8 {[%clk 0:01:44]} 29. g6 {[%clk 0:00:16]}  f6 {[%clk 0:01:42]} 30. Nf7 {[%clk 0:00:16]}  Rh5 {[%clk 0:01:38]} 31. Rb1 {[%clk 0:00:17]}  a5 {[%clk 0:01:38]} 32. Rc1 {[%clk 0:00:16]}  c5 {[%clk 0:01:36]} 33. dxc5 {[%clk 0:00:16]}  Bxc5 {[%clk 0:01:37]} 34. Rb1 {[%clk 0:00:15]}  Bb4 {[%clk 0:01:36]} 35. Rd1 {[%clk 0:00:14]}  Rd5 {[%clk 0:01:36]} 36. Re1 {[%clk 0:00:10]}  Bxe1 {[%clk 0:01:35]} 0-1


[Site "https://www.chess.com"]

[Event "Titled Tuesday Blitz May 9 Early 2023"]
[White "Federzoni, Enzo"]
[Black "Butti, Enrique"]
[WhiteFideId "2173301"]
[BlackFideId "3700470"]
[WhiteElo "2039"]
[BlackElo "2080"]
[Result "0-1"]
[Round "02"]
[TimeControl "180+2"]
[Date "2023.05.09"]
[WhiteClock "0:00:00"]
[BlackClock "0:00:54"]

1. e4 {[%clk 0:03:00]}  c5 {[%clk 0:02:59]} 2. Nf3 {[%clk 0:03:01]}  d6 {[%clk 0:02:59]} 3. d4 {[%clk 0:03:00]}  cxd4 {[%clk 0:02:58]} 4. Nxd4 {[%clk 0:03:00]}  Nf6 {[%clk 0:02:59]} 5. Nc3 {[%clk 0:03:00]}  a6 {[%clk 0:02:59]} 6. Be2 {[%clk 0:02:59]}  e6 {[%clk 0:02:56]} 7. Be3 {[%clk 0:02:31]}  Nbd7 {[%clk 0:02:54]} 8. O-O {[%clk 0:02:29]}  b5 {[%clk 0:02:54]} 9. f4 {[%clk 0:02:12]}  Bb7 {[%clk 0:02:52]} 10. Bf3 {[%clk 0:02:00]}  Rc8 {[%clk 0:02:51]} 11. a3 {[%clk 0:01:53]}  Rxc3 {[%clk 0:02:50]} 12. bxc3 {[%clk 0:01:53]}  Nxe4 {[%clk 0:02:49]} 13. Qe1 {[%clk 0:01:43]}  Qc7 {[%clk 0:02:48]} 14. Bxe4 {[%clk 0:01:36]}  Bxe4 {[%clk 0:02:47]} 15. f5 {[%clk 0:01:37]}  e5 {[%clk 0:02:46]} 16. Bd2 {[%clk 0:01:13]}  Bb7 {[%clk 0:02:40]} 17. a4 {[%clk 0:00:56]}  bxa4 {[%clk 0:02:22]} 18. Qe2 {[%clk 0:00:42]}  Nc5 {[%clk 0:02:15]} 19. c4 {[%clk 0:00:35]}  Be7 {[%clk 0:02:11]} 20. f6 {[%clk 0:00:32]}  Bxf6 {[%clk 0:02:07]} 21. Rxf6 {[%clk 0:00:28]}  gxf6 {[%clk 0:02:07]} 22. Nf5 {[%clk 0:00:28]}  Rg8 {[%clk 0:01:58]} 23. g3 {[%clk 0:00:26]}  Qc6 {[%clk 0:01:50]} 24. Kf2 {[%clk 0:00:07]}  Ne4+ {[%clk 0:01:32]} 25. Ke1 {[%clk 0:00:07]}  Nxd2 {[%clk 0:01:22]} 26. Kxd2 {[%clk 0:00:06]}  d5 {[%clk 0:01:17]} 27. Rb1 {[%clk 0:00:06]}  dxc4 {[%clk 0:01:15]} 28. Rxb7 {[%clk 0:00:06]}  Rg5 {[%clk 0:01:02]} 29. Re7+ {[%clk 0:00:07]}  Kf8 {[%clk 0:01:01]} 30. Qf2 {[%clk 0:00:05]}  Rxf5 {[%clk 0:01:00]} 31. Qxf5 {[%clk 0:00:05]}  Kxe7 {[%clk 0:01:00]} 32. Qxh7 {[%clk 0:00:06]}  c3+ {[%clk 0:00:59]} 33. Kd3 {[%clk 0:00:04]}  a3 {[%clk 0:00:56]} 34. Qh4 {[%clk 0:00:00]}  a2 {[%clk 0:00:54]} 0-1


[Site "https://www.chess.com"]

[Event "Titled Tuesday Blitz May 9 Early 2023"]
[White "Szyszylo, Rafal"]
[Black "Torres Dominguez, David"]
[WhiteFideId "1109626"]
[BlackFideId "2220857"]
[WhiteElo "1951"]
[BlackElo "1999"]
[Result "1-0"]
[Round "02"]
[TimeControl "180+2"]
[Date "2023.05.09"]
[WhiteClock "0:01:14"]
[BlackClock "0:01:20"]

1. e4 {[%clk 0:03:00]}  Nc6 {[%clk 0:02:59]} 2. Nf3 {[%clk 0:03:00]}  e5 {[%clk 0:03:00]} 3. Bb5 {[%clk 0:02:59]}  Nge7 {[%clk 0:03:00]} 4. c3 {[%clk 0:02:53]}  g6 {[%clk 0:02:59]} 5. d4 {[%clk 0:02:53]}  Bg7 {[%clk 0:02:59]} 6. O-O {[%clk 0:02:52]}  O-O {[%clk 0:02:58]} 7. h3 {[%clk 0:02:52]}  d5 {[%clk 0:02:57]} 8. exd5 {[%clk 0:02:50]}  Qxd5 {[%clk 0:02:58]} 9. c4 {[%clk 0:02:46]}  Qd6 {[%clk 0:02:58]} 10. d5 {[%clk 0:02:46]}  Nd4 {[%clk 0:02:46]} 11. Nxd4 {[%clk 0:02:43]}  exd4 {[%clk 0:02:46]} 12. b3 {[%clk 0:02:39]}  c6 {[%clk 0:02:46]} 13. Ba3 {[%clk 0:02:39]}  c5 {[%clk 0:02:21]} 14. Nd2 {[%clk 0:02:30]}  f5 {[%clk 0:02:15]} 15. Rb1 {[%clk 0:02:09]}  Rb8 {[%clk 0:02:15]} 16. b4 {[%clk 0:02:07]}  b6 {[%clk 0:02:08]} 17. bxc5 {[%clk 0:01:59]}  bxc5 {[%clk 0:02:08]} 18. Nb3 {[%clk 0:01:57]}  f4 {[%clk 0:01:41]} 19. Bxc5 {[%clk 0:01:57]}  Qd8 {[%clk 0:01:41]} 20. Nxd4 {[%clk 0:01:45]}  f3 {[%clk 0:01:37]} 21. Re1 {[%clk 0:01:30]}  Rf7 {[%clk 0:01:32]} 22. Nxf3 {[%clk 0:01:23]}  Nf5 {[%clk 0:01:29]} 23. Re8+ {[%clk 0:01:16]}  Qxe8 {[%clk 0:01:27]} 24. Bxe8 {[%clk 0:01:15]}  Rc7 {[%clk 0:01:20]} 25. Rxb8 {[%clk 0:01:14]} 1-0


[Site "https://www.chess.com"]

[Event "Titled Tuesday Blitz May 9 Early 2023"]
[White "Maranhao,Jose Renato Ruiz"]
[Black "Gheorghiu, Calin"]
[WhiteFideId "2135175"]
[BlackFideId "1200305"]
[WhiteElo "1970"]
[BlackElo "2223"]
[Result "0-1"]
[Round "02"]
[TimeControl "180+2"]
[Date "2023.05.09"]
[WhiteClock "0:00:00"]
[BlackClock "0:00:14"]

1. e4 {[%clk 0:03:00]}  c5 {[%clk 0:02:59]} 2. Nf3 {[%clk 0:03:01]}  d6 {[%clk 0:02:59]} 3. d4 {[%clk 0:03:01]}  cxd4 {[%clk 0:02:59]} 4. Nxd4 {[%clk 0:03:02]}  Nf6 {[%clk 0:02:59]} 5. Nc3 {[%clk 0:03:02]}  a6 {[%clk 0:02:59]} 6. Bd3 {[%clk 0:03:03]}  g6 {[%clk 0:02:58]} 7. O-O {[%clk 0:03:03]}  Bg7 {[%clk 0:02:58]} 8. h3 {[%clk 0:03:02]}  O-O {[%clk 0:02:58]} 9. Be3 {[%clk 0:03:02]}  Nc6 {[%clk 0:02:56]} 10. a3 {[%clk 0:03:02]}  Bd7 {[%clk 0:02:52]} 11. Qd2 {[%clk 0:02:57]}  Rc8 {[%clk 0:02:50]} 12. Nxc6 {[%clk 0:02:51]}  Bxc6 {[%clk 0:02:49]} 13. Bh6 {[%clk 0:02:51]}  b5 {[%clk 0:02:43]} 14. Rad1 {[%clk 0:02:43]}  Qb6 {[%clk 0:02:40]} 15. Kh2 {[%clk 0:02:22]}  Rfd8 {[%clk 0:02:32]} 16. Bxg7 {[%clk 0:02:10]}  Kxg7 {[%clk 0:02:31]} 17. f4 {[%clk 0:02:09]}  a5 {[%clk 0:01:48]} 18. b4 {[%clk 0:01:20]}  axb4 {[%clk 0:01:44]} 19. axb4 {[%clk 0:01:21]}  d5 {[%clk 0:01:20]} 20. e5 {[%clk 0:00:51]}  Ne4 {[%clk 0:01:19]} 21. Qe1 {[%clk 0:00:45]}  Nxc3 {[%clk 0:01:12]} 22. Qxc3 {[%clk 0:00:46]}  d4 {[%clk 0:01:12]} 23. Qe1 {[%clk 0:00:33]}  e6 {[%clk 0:01:12]} 24. Ra1 {[%clk 0:00:22]}  Bd5 {[%clk 0:01:07]} 25. Qh4 {[%clk 0:00:13]}  Bc4 {[%clk 0:01:07]} 26. Qf6+ {[%clk 0:00:11]}  Kg8 {[%clk 0:01:07]} 27. f5 {[%clk 0:00:02]}  Bxd3 {[%clk 0:01:06]} 28. cxd3 {[%clk 0:00:02]}  Rf8 {[%clk 0:00:52]} 29. fxg6 {[%clk 0:00:02]}  fxg6 {[%clk 0:00:51]} 30. Qg5 {[%clk 0:00:02]}  Qb7 {[%clk 0:00:45]} 31. Qg4 {[%clk 0:00:01]}  Rf5 {[%clk 0:00:43]} 32. Qe4 {[%clk 0:00:01]}  Qxe4 {[%clk 0:00:42]} 33. dxe4 {[%clk 0:00:02]}  Rxf1 {[%clk 0:00:39]} 34. Rxf1 {[%clk 0:00:02]}  Rc4 {[%clk 0:00:36]} 35. Rf6 {[%clk 0:00:03]}  Rxb4 {[%clk 0:00:35]} 36. Rxe6 {[%clk 0:00:04]}  d3 {[%clk 0:00:35]} 37. Rd6 {[%clk 0:00:05]}  Rxe4 {[%clk 0:00:35]} 38. Rxd3 {[%clk 0:00:05]}  Rxe5 {[%clk 0:00:35]} 39. Rb3 {[%clk 0:00:06]}  h5 {[%clk 0:00:34]} 40. Kg3 {[%clk 0:00:07]}  g5 {[%clk 0:00:34]} 41. Kf3 {[%clk 0:00:06]}  Kg7 {[%clk 0:00:34]} 42. g4 {[%clk 0:00:06]}  h4 {[%clk 0:00:34]} 43. Rb2 {[%clk 0:00:03]}  Kf6 {[%clk 0:00:32]} 44. Rc2 {[%clk 0:00:03]}  b4 {[%clk 0:00:29]} 45. Rc6+ {[%clk 0:00:04]}  Re6 {[%clk 0:00:29]} 46. Rc5 {[%clk 0:00:04]}  Rb6 {[%clk 0:00:29]} 47. Ke4 {[%clk 0:00:03]}  b3 {[%clk 0:00:29]} 48. Rc1 {[%clk 0:00:03]}  b2 {[%clk 0:00:28]} 49. Rb1 {[%clk 0:00:03]}  Rb3 {[%clk 0:00:28]} 50. Kd4 {[%clk 0:00:02]}  Kg6 {[%clk 0:00:20]} 51. Kc4 {[%clk 0:00:02]}  Rb6 {[%clk 0:00:15]} 52. Kc3 {[%clk 0:00:03]}  Kf6 {[%clk 0:00:15]} 53. Rg1 {[%clk 0:00:00]}  b1=Q {[%clk 0:00:14]} 0-1


[Site "https://www.chess.com"]

[Event "Titled Tuesday Blitz May 9 Early 2023"]
[White "Golubev, Mikhail"]
[Black "Castillo Pena, Patricia Evarista"]
[WhiteFideId "14100983"]
[BlackFideId "6412106"]
[WhiteElo "2374"]
[BlackElo "1919"]
[Result "1-0"]
[Round "02"]
[TimeControl "180+2"]
[Date "2023.05.09"]
[WhiteClock "0:00:37"]
[BlackClock "0:00:43"]

1. e4 {[%clk 0:03:00]}  c5 {[%clk 0:02:58]} 2. Nf3 {[%clk 0:03:00]}  d6 {[%clk 0:02:58]} 3. d4 {[%clk 0:03:00]}  cxd4 {[%clk 0:02:58]} 4. Nxd4 {[%clk 0:03:01]}  Nf6 {[%clk 0:02:58]} 5. Nc3 {[%clk 0:03:01]}  a6 {[%clk 0:02:58]} 6. Bc4 {[%clk 0:03:01]}  e6 {[%clk 0:02:58]} 7. O-O {[%clk 0:03:02]}  Be7 {[%clk 0:02:56]} 8. Bb3 {[%clk 0:03:01]}  O-O {[%clk 0:02:55]} 9. f4 {[%clk 0:02:58]}  Nbd7 {[%clk 0:02:52]} 10. Be3 {[%clk 0:02:55]}  Nc5 {[%clk 0:02:52]} 11. Qf3 {[%clk 0:02:55]}  Qc7 {[%clk 0:02:50]} 12. g4 {[%clk 0:02:55]}  Nxb3 {[%clk 0:02:33]} 13. axb3 {[%clk 0:02:56]}  b5 {[%clk 0:02:33]} 14. Ndxb5 {[%clk 0:02:35]}  axb5 {[%clk 0:02:27]} 15. Rxa8 {[%clk 0:02:34]}  b4 {[%clk 0:02:21]} 16. Ra7 {[%clk 0:02:16]}  Qd8 {[%clk 0:02:00]} 17. Na4 {[%clk 0:02:08]}  d5 {[%clk 0:01:52]} 18. e5 {[%clk 0:01:46]}  Ne4 {[%clk 0:01:50]} 19. Rd1 {[%clk 0:01:43]}  Bd7 {[%clk 0:01:27]} 20. Rxd7 {[%clk 0:00:57]}  Qxd7 {[%clk 0:01:26]} 21. Qxe4 {[%clk 0:00:57]}  Qxa4 {[%clk 0:01:18]} 22. bxa4 {[%clk 0:00:57]}  dxe4 {[%clk 0:01:18]} 23. Rd7 {[%clk 0:00:47]}  Re8 {[%clk 0:01:12]} 24. a5 {[%clk 0:00:43]}  Kf8 {[%clk 0:01:11]} 25. a6 {[%clk 0:00:42]}  Rc8 {[%clk 0:01:01]} 26. a7 {[%clk 0:00:39]}  Ke8 {[%clk 0:00:43]} 27. Rb7 {[%clk 0:00:37]} 1-0


[Site "https://www.chess.com"]

[Event "Titled Tuesday Blitz May 9 Early 2023"]
[White "Vargas, Mauricio"]
[Black "Tarasova, Viktoriya"]
[WhiteFideId "4404572"]
[BlackFideId "4175840"]
[WhiteElo "1986"]
[BlackElo "2182"]
[Result "0-1"]
[Round "02"]
[TimeControl "180+2"]
[Date "2023.05.09"]
[WhiteClock "0:00:00"]
[BlackClock "0:02:07"]

1. e4 {[%clk 0:02:28]}  e5 {[%clk 0:02:51]} 2. Nf3 {[%clk 0:02:27]}  Nc6 {[%clk 0:02:50]} 3. d4 {[%clk 0:02:28]}  exd4 {[%clk 0:02:49]} 4. Bc4 {[%clk 0:02:26]}  Bc5 {[%clk 0:02:46]} 5. c3 {[%clk 0:02:23]}  Nf6 {[%clk 0:02:36]} 6. e5 {[%clk 0:02:19]}  d5 {[%clk 0:02:35]} 7. Bb5 {[%clk 0:02:00]}  Ne4 {[%clk 0:02:34]} 8. cxd4 {[%clk 0:01:57]}  Bb6 {[%clk 0:02:35]} 9. O-O {[%clk 0:01:56]}  O-O {[%clk 0:02:31]} 10. Nc3 {[%clk 0:01:39]}  Bg4 {[%clk 0:02:29]} 11. h3 {[%clk 0:01:37]}  Bxf3 {[%clk 0:02:21]} 12. gxf3 {[%clk 0:01:27]}  Ng5 {[%clk 0:02:21]} 13. h4 {[%clk 0:01:12]}  Ne6 {[%clk 0:02:18]} 14. Kg2 {[%clk 0:00:42]}  Ncxd4 {[%clk 0:02:16]} 15. Bd3 {[%clk 0:00:31]}  f6 {[%clk 0:02:12]} 16. exf6 {[%clk 0:00:15]}  Rxf6 {[%clk 0:02:10]} 17. Bg5 {[%clk 0:00:06]}  Nxg5 {[%clk 0:02:09]} 18. hxg5 {[%clk 0:00:05]}  Rxf3 {[%clk 0:02:09]} 19. Bxh7+ {[%clk 0:00:00]}  Kxh7 {[%clk 0:02:07]} 0-1


[Site "https://www.chess.com"]